bitfinex/quotes_ETHUSD_20240717
["timestamp","ask_amount","ask_price","bid_price","bid_amount"]
[1721212518443,3.0,3490.4,3489.5,2.86573]
[1721212518850,3.0,3490.4,3489.7,2.86556]
[1721212519143,2.4095,3490.7,3489.7,2.86556]
[1721212519348,2.4095,3490.7,3489.8,0.43600288]
[1721212519645,2.4095,3490.7,3489.9,2.86539]
[1721212520848,2.4095,3490.7,3489.8,0.43600288]
[1721212521226,2.4095,3490.7,3489.7,2.86556]
[1721212521426,2.4095,3490.7,3489.8,0.99627738]
[1721212521624,2.86506,3490.4,3489.4,3.46480655]
[1721212521827,3.0,3490.3,3489.5,2.49080833]
[1721212522023,3.0,3490.4,3489.4,2.8658]
[1721212522238,3.0,3490.4,3489.4,3.93021983]
[1721212522527,5.86505,3490.4,3489.5,0.99634171]
[1721212522721,5.86505,3490.4,3489.4,3.93021983]
[1721212522922,5.86505,3490.4,3489.5,0.99633601]
[1721212523252,5.86505,3490.4,3489.4,3.93021983]
[1721212523414,5.86505,3490.4,3489.5,1.89859361]
[1721212523609,5.86505,3490.4,3489.5,0.90225753]
[1721212524345,3.0,3490.4,3489.6,5.35648776]
[1721212524534,3.0,3490.5,3489.6,2.86565]
[1721212524711,3.0,3490.5,3489.6,3.47881403]
[1721212525052,5.86492,3490.5,3489.6,3.47881403]
[1721212525428,5.86492,3490.5,3489.5,0.90225753]
[1721212526449,5.73016,3490.4,3489.4,2.8658]
[1721212526629,3.0,3490.3,3489.5,2.49081873]
[1721212526816,3.0,3490.3,3489.4,2.8658]
[1721212527147,3.0,3490.3,3489.5,2.49081855]
[1721212527348,3.0,3490.3,3489.6,2.49081855]
[1721212527543,3.0,3490.3,3489.6,0.88467735]
[1721212527860,2.302,3490.2,3489.4,0.59900655]
[1721212528050,2.86543,3489.9,3489.1,0.087473]
[1721212528348,2.302,3490.2,3489.1,0.087473]
[1721212528349,2.86529,3490.1,3489.1,0.087473]
[1721212528539,3.0,3490.0,3489.2,2.49101608]
[1721212528845,5.16721,3490.2,3489.3,0.60436356]
[1721212529045,2.86533,3490.0,3489.3,0.60436356]
[1721212530327,2.86533,3490.0,3489.1,0.087473]
[1721212530529,2.86533,3490.0,3489.2,0.99643621]
[1721212530721,2.86533,3490.0,3489.1,0.087473]
[1721212530932,2.86533,3490.0,3489.2,0.9964197]
[1721212531150,2.86533,3490.0,3489.1,0.087473]
[1721212531331,2.86533,3490.0,3489.2,0.99641959]
[1721212531647,2.86541,3489.9,3489.1,0.087473]
[1721212532224,2.86533,3490.0,3489.1,0.087473]
[1721212533746,2.86542,3489.9,3489.1,0.087473]
[1721212536670,2.8655,3489.8,3489.1,0.087473]
[1721212538964,5.86529,3490.1,3489.2,0.99641534]
[1721212539276,5.86529,3490.1,3489.1,2.91271638]
[1721212539478,5.86529,3490.1,3489.2,0.99640943]
[1721212539680,5.86529,3490.1,3489.1,2.91271638]
[1721212539868,5.86529,3490.1,3489.2,2.78968195]
[1721212540195,5.86529,3490.1,3489.2,1.79328629]
[1721212540889,3.0,3490.1,3489.4,2.8658]
[1721212541087,2.86501,3490.4,3489.4,2.8658]
[1721212541287,3.0,3490.3,3489.5,0.75250363]
[1721212541489,5.86508,3490.3,3489.5,0.75250363]
[1721212541698,5.86508,3490.3,3489.2,4.65919629]
[1721212541871,5.86508,3490.3,3489.3,2.49090976]
[1721212542064,5.86508,3490.3,3489.2,4.65923629]
[1721212542264,5.86508,3490.3,3489.3,2.4909126]
[1721212542465,2.86516,3490.2,3489.2,4.65923629]
[1721212542675,3.0,3490.1,3489.3,3.68447269]
[1721212542999,3.0,3490.1,3489.4,0.9963551]
[1721212543299,3.0,3490.1,3489.3,1.19355891]
[1721212544088,3.0,3490.1,3489.3,4.05944891]
[1721212544876,3.0,3490.1,3489.3,1.19355891]
[1721212545293,5.24554,3490.0,3489.1,3.51172293]
[1721212545460,2.86542,3489.9,3489.2,0.99638942]
[1721212545670,2.86542,3489.9,3489.1,0.087473]
[1721212547495,2.4907,3489.9,3489.1,0.087473]
[1721212547700,2.86566,3489.6,3489.1,0.087473]
[1721212548006,2.4907,3489.3,3489.1,0.087473]
[1721212548178,2.86598,3489.2,3489.1,0.087473]
[1721212553575,2.4907,3489.3,3489.1,0.087473]
[1721212553809,5.35661,3489.3,3489.1,0.087473]
[1721212554898,2.86598,3489.2,3489.1,0.087473]
[1721212560276,2.86582,3489.4,3489.1,0.087473]
[1721212560679,2.3826,3489.6,3489.1,0.087473]
[1721212560917,3.0,3489.6,3489.1,0.087473]
[1721212561410,3.29952263,3489.8,3489.1,0.087473]
[1721212561713,2.86562,3489.7,3489.1,0.087473]
[1721212562012,3.0,3489.6,3489.2,5.21236]
[1721212562222,0.29952366,3490.2,3489.5,2.86568]
[1721212562402,0.29952366,3490.2,3489.6,2.86564]
[1721212562584,2.3701,3490.7,3489.6,2.86564]
[1721212562778,2.86485,3490.6,3489.7,0.573132]
[1721212563112,2.86471,3490.8,3489.7,0.573132]
[1721212563483,3.0,3490.7,3489.7,0.573132]
[1721212564004,2.86471,3490.8,3489.7,3.438702]
[1721212564884,2.86423,3491.4,3490.2,2.86513]
[1721212565217,5.17003,3491.6,3490.5,2.86491]
[1721212565919,2.306,3491.6,3490.4,2.86498]
[1721212566420,2.306,3491.6,3490.6,2.86483]
[1721212566618,8.17003,3491.6,3490.4,2.86498]
[1721212566917,0.09335891,3491.5,3489.8,1.494205]
[1721212567135,2.86459,3490.9,3489.6,5.28062]
[1721212567416,2.86475,3490.7,3489.7,1.10225466]
[1721212567616,2.86475,3490.7,3489.4,2.87620655]
[1721212567617,2.86484,3490.6,3489.4,2.87620655]
[1721212567915,2.86484,3490.6,3489.4,1.49435331]
[1721212568116,2.86484,3490.6,3489.3,0.5299833]
[1721212568117,3.0,3490.5,3489.5,2.86573]
[1721212568508,5.86496,3490.5,3489.3,3.3958233]
[1721212569243,2.86511,3490.3,3489.1,2.953513]
[1721212569550,3.0,3490.2,3489.2,2.86598]
[1721212571029,5.86516,3490.2,3489.1,2.953483]
[1721212571740,5.86516,3490.2,3489.2,2.86597]
[1721212573123,3.0,3490.2,3489.3,2.86588]
[1721212573444,3.0,3490.4,3489.4,0.8234323]
[1721212573644,3.0,3490.4,3489.4,3.6891723]
[1721212573957,5.18387,3490.8,3489.7,5.26486]
[1721212574165,2.86459,3490.9,3489.8,2.86547]
[1721212574312,2.86459,3490.9,3489.9,0.767977]
[1721212574745,2.86452,3491.0,3490.0,2.86531]
[1721212574746,2.86451,3491.0,3490.0,2.86531]
[1721212575617,2.86438,3491.2,3490.0,2.86531]
[1721212575927,2.8642,3491.4,3490.1,2.3955]
[1721212576115,2.8642,3491.4,3490.4,2.86496]
[1721212576319,2.86435,3491.2,3490.2,3.5929377]
[1721212576555,2.8642,3491.4,3490.2,3.5929377]
[1721212576728,2.8642,3491.4,3490.4,2.86496]
[1721212577359,3.0,3491.3,3490.4,2.86496]
[1721212577567,3.0,3491.3,3490.5,0.64578977]
[1721212577840,5.86427,3491.3,3490.5,0.64578977]
[1721212578232,2.86449,3491.1,3490.2,0.7278477]
[1721212578465,3.0,3491.3,3490.2,0.7278477]
[1721212578665,3.0,3491.3,3490.3,2.86501]
[1721212578832,3.0,3491.3,3490.4,3.46381577]
[1721212579033,3.0,3491.3,3490.6,2.86476]
[1721212579241,2.86386,3491.8,3490.6,2.86476]
[1721212579242,2.86407,3491.6,3490.6,2.86476]
[1721212579571,3.0,3491.5,3490.6,2.86476]
[1721212580650,3.0,3491.5,3490.7,2.86474]
[1721212580846,3.0,3491.6,3490.8,5.85262]
[1721212581066,2.86382,3491.9,3490.8,5.85262]
[1721212581272,3.0,3491.8,3490.8,5.85262]
[1721212581427,5.86386,3491.8,3490.8,2.98795]
[1721212581773,2.86393,3491.7,3490.7,2.86475]
[1721212581979,3.0,3491.6,3490.7,2.86475]
[1721212583379,3.0,3491.6,3490.5,4.56491]
[1721212583592,3.0,3491.6,3490.6,2.8648]
[1721212583743,3.0,3491.6,3490.7,2.86475]
[1721212584259,3.0,3491.6,3490.7,3.90909958]
[1721212585167,3.0,3491.6,3490.7,1.04434958]
[1721212585368,3.0,3491.6,3490.5,4.56485]
[1721212585541,3.0,3491.6,3490.6,2.86483]
[1721212586849,3.0,3491.6,3490.7,2.86474]
[1721212587071,5.8639,3491.8,3490.8,2.447]
[1721212587385,5.8639,3491.8,3490.8,3.434657]
[1721212587539,2.3761,3492.1,3491.0,2.86449]
[1721212587945,5.23975,3492.1,3491.0,2.86449]
[1721212588248,5.23975,3492.1,3491.0,2.92177437]
[1721212588451,5.23975,3492.1,3491.1,1.33359414]
[1721212589842,5.23975,3492.1,3491.1,4.25526811]
[1721212590067,5.23975,3492.1,3491.2,2.86434]
[1721212590282,3.0,3492.0,3491.2,2.86434]
[1721212590495,5.3761,3492.1,3491.2,2.86434]
[1721212590698,5.3761,3492.1,3491.2,2.86431]
[1721212591590,8.2397,3492.1,3491.2,2.86431]
[1721212591949,2.86368,3492.0,3491.1,1.33359414]
[1721212592149,5.3761,3492.1,3490.8,2.447]
[1721212592492,2.86398,3491.7,3490.8,2.447]
[1721212592805,2.86402,3491.6,3490.8,2.447]
[1721212593092,2.86402,3491.6,3490.5,2.86485]
[1721212593297,2.4668,3491.4,3490.4,8.15437577]
[1721212593479,2.4668,3491.4,3490.5,4.78362635]
[1721212593664,2.4668,3491.4,3490.6,2.86483]
[1721212593863,5.33099,3491.4,3490.5,1.91872635]
[1721212594062,5.33099,3491.4,3490.4,3.46377577]
[1721212594609,2.86458,3491.0,3490.2,7.44]
[1721212594886,3.0,3491.3,3490.2,7.44]
[1721212594887,2.8646,3490.9,3490.2,7.44]
[1721212595100,2.8646,3490.9,3489.9,2.92]
[1721212595402,2.8646,3490.9,3489.7,2.8655]
[1721212595694,2.8646,3490.9,3489.8,4.664733]
[1721212595855,2.8646,3490.9,3489.9,2.86537]
[1721212596064,2.8646,3490.9,3490.0,2.86532]
[1721212596352,2.8646,3490.9,3489.8,1.799253]
[1721212596580,2.8646,3490.9,3489.9,2.86536]
[1721212596748,2.8646,3490.9,3490.0,0.7530153]
[1721212597356,2.86467,3490.8,3490.0,0.7530153]
[1721212597582,2.86475,3490.7,3490.0,0.7530153]
[1721212599674,2.86468,3490.8,3490.0,0.7530153]
[1721212600193,3.0,3491.3,3490.1,0.54177483]
[1721212600194,2.86434,3491.2,3490.1,0.54177483]
[1721212600410,2.86443,3491.1,3490.2,2.3518]
[1721212601264,3.0,3491.3,3490.2,5.21692]
[1721212601483,3.0,3491.3,3490.3,1.17920301]
[1721212601683,3.0,3491.3,3490.3,4.04426301]
[1721212601885,5.86431,3491.3,3490.3,4.04426301]
[1721212602231,3.0,3491.3,3490.4,2.86496]
[1721212602360,8.33099,3491.4,3490.5,2.86489]
[1721212602563,8.33099,3491.4,3490.6,0.6909053]
[1721212603120,5.4668,3491.4,3490.6,0.6909053]
[1721212603401,5.8641,3491.5,3490.6,3.5556853]
[1721212603564,3.0,3491.3,3490.6,0.6909053]
[1721212603765,5.8641,3491.5,3490.6,0.6909053]
[1721212603998,5.8641,3491.5,3490.3,1.17920301]
[1721212603999,2.86426,3491.3,3490.3,1.17920301]
[1721212604298,5.86434,3491.2,3490.3,1.17920301]
[1721212605068,5.86434,3491.2,3490.3,4.04426301]
[1721212605290,5.86434,3491.2,3490.4,0.98029578]
[1721212605690,3.0,3491.2,3490.5,2.8649]
[1721212606008,3.0,3491.5,3490.6,2.86482]
[1721212606211,3.0,3491.5,3490.6,5.72959]
[1721212606516,3.0,3491.5,3490.6,2.86477]
[1721212606670,3.0,3491.5,3490.6,3.53577258]
[1721212608017,3.0,3491.5,3490.6,6.40054258]
[1721212608304,3.0,3491.5,3490.7,5.26978]
[1721212608603,5.86393,3491.7,3490.8,2.86467]
[1721212609471,5.86393,3491.7,3490.7,2.4051]
[1721212609666,5.86393,3491.7,3490.7,3.79520384]
[1721212609863,5.86393,3491.7,3490.7,6.65992384]
[1721212610110,5.86393,3491.7,3490.8,2.86467]
[1721212610397,5.86393,3491.7,3490.7,3.79520384]
[1721212610603,2.86406,3491.6,3490.7,2.4051]
[1721212610791,5.86409,3491.5,3490.7,2.4051]
[1721212611104,3.0,3491.4,3490.7,2.4051]
[1721212613013,3.0,3491.4,3490.6,0.67100258]
[1721212613413,3.0,3491.4,3490.4,5.27993]
[1721212613723,3.0,3491.4,3490.5,2.86488]
[1721212614617,3.0,3491.4,3490.5,2.86486]
[1721212615392,3.0,3491.4,3490.6,2.86478]
[1721212616206,3.0,3491.4,3490.7,2.86475]
[1721212616403,2.2914,3491.6,3490.8,0.572961]
[1721212616404,5.2914,3491.6,3490.8,0.572961]
[1721212616604,2.86381,3491.9,3490.9,2.3893]
[1721212616810,2.86361,3492.1,3491.1,2.86434]
[1721212617021,2.86352,3492.2,3491.2,2.86432]
[1721212617222,2.86352,3492.2,3491.3,0.572866]
[1721212618577,2.8636,3492.1,3491.3,0.572866]
[1721212618786,2.8636,3492.1,3491.2,2.86432]
[1721212619389,3.0,3492.0,3491.2,2.86432]
[1721212620284,3.0,3492.0,3491.2,2.92160027]
[1721212620483,8.3166,3492.3,3491.2,2.92160027]
[1721212620684,2.86352,3492.2,3491.2,2.86432]
[1721212621035,5.86361,3492.1,3491.2,2.86432]
[1721212621516,5.86361,3492.1,3491.0,3.46343655]
[1721212621684,5.86361,3492.1,3491.1,2.48952117]
[1721212621884,5.86361,3492.1,3491.0,4.61400168]
[1721212622191,2.86394,3491.7,3490.8,0.572961]
[1721212622382,5.35124,3491.7,3490.6,2.86478]
[1721212622584,2.86408,3491.6,3490.6,5.72956]
[1721212622778,2.86408,3491.6,3490.7,0.99597705]
[1721212623007,2.86408,3491.6,3490.7,2.86474]
[1721212623197,5.86362,3492.1,3491.0,2.86445]
[1721212623408,2.86368,3492.0,3491.0,5.72891]
[1721212623725,3.0,3491.9,3491.2,5.22488]
[1721212623919,3.0,3492.1,3491.2,5.28215985]
[1721212624413,3.0,3492.1,3491.2,5.22488]
[1721212624829,3.0,3492.1,3491.3,2.92152983]
[1721212624982,3.0,3492.3,3491.3,2.92152983]
[1721212625189,3.0,3492.3,3491.4,0.87792015]
[1721212625787,3.0,3492.5,3491.5,2.86404]
[1721212625978,5.20672,3492.6,3491.5,2.86404]
[1721212626193,5.20672,3492.6,3491.6,2.86401]
[1721212626523,2.86329,3492.5,3491.4,2.86415]
[1721212626727,2.86329,3492.5,3491.4,5.72825]
[1721212626895,2.86329,3492.5,3491.5,4.14435566]
[1721212627087,2.86329,3492.5,3491.5,4.20163162]
[1721212627305,2.86329,3492.5,3491.5,4.14435566]
[1721212627708,2.86329,3492.5,3491.5,1.28028566]
[1721212627912,5.20669,3492.6,3491.6,2.864]
[1721212628122,5.20669,3492.6,3491.7,0.70656616]
[1721212629230,5.20669,3492.6,3491.6,2.864]
[1721212630441,2.86329,3492.5,3491.4,2.8641]
[1721212630753,2.86329,3492.5,3491.5,2.86408]
[1721212631108,2.86329,3492.5,3491.4,2.86415]
[1721212631345,2.86336,3492.4,3491.4,2.86415]
[1721212631547,2.86336,3492.4,3491.5,2.86407]
[1721212633650,2.86336,3492.4,3491.4,1.17358482]
[1721212633951,2.86336,3492.4,3491.3,2.8642]
[1721212634151,2.86336,3492.4,3491.4,2.86417]
[1721212634654,5.72679,3492.4,3491.4,2.86417]
[1721212635040,2.3435,3492.6,3491.2,4.7756]
[1721212635230,5.72718,3492.2,3491.2,2.3606]
[1721212635436,2.86362,3492.1,3491.2,2.3606]
[1721212635619,2.86362,3492.1,3491.2,2.77098274]
[1721212635823,2.86362,3492.1,3491.2,5.63531274]
[1721212636065,2.86362,3492.1,3491.2,2.77098274]
[1721212636955,2.86362,3492.1,3491.2,5.63530274]
[1721212639056,2.86344,3492.3,3491.3,2.86422]
[1721212639231,2.86344,3492.3,3491.4,0.56352027]
[1721212639621,2.86344,3492.3,3491.4,3.42769027]
[1721212640460,2.86344,3492.3,3491.4,2.86417]
[1721212641830,5.72696,3492.3,3491.2,5.22493]
[1721212642026,2.4975,3492.0,3491.2,2.3606]
[1721212642227,2.4975,3492.0,3490.8,4.8597]
[1721212642430,2.86314,3492.7,3490.6,1.49366335]
[1721212642431,2.4975,3491.4,3490.6,1.49366335]
[1721212642629,5.36169,3491.4,3490.7,4.0]
[1721212643426,5.86427,3491.3,3490.7,4.0]
[1721212643627,5.86427,3491.3,3490.1,7.44]
[1721212643628,2.86449,3491.1,3490.1,7.44]
[1721212643832,2.86449,3491.1,3490.1,9.19457138]
[1721212644046,2.86449,3491.1,3490.1,12.05979138]
[1721212644273,5.72899,3491.1,3490.1,12.05979138]
[1721212644437,2.86452,3491.0,3490.1,9.19457138]
[1721212645156,3.0,3491.2,3490.1,12.05980138]
[1721212645353,3.0,3491.2,3490.2,1.72069214]
[1721212645354,5.86439,3491.2,3490.2,1.72069214]
[1721212645760,2.86443,3491.1,3490.2,1.72069214]
[1721212647158,3.0,3491.2,3490.2,4.58584214]
[1721212647354,5.86441,3491.2,3490.2,4.58584214]
[1721212647561,2.86447,3491.1,3490.2,4.58584214]
[1721212647738,2.86447,3491.1,3490.3,1.48911621]
[1721212648842,5.86436,3491.2,3490.3,1.48911621]
[1721212649673,5.86436,3491.2,3490.5,2.4111]
[1721212649674,3.0,3491.2,3490.5,2.4111]
[1721212649874,5.36172,3491.4,3490.5,2.4111]
[1721212649875,3.0,3491.3,3490.5,2.4111]
[1721212650074,3.0,3491.3,3490.5,5.27599]
[1721212653046,3.0,3491.3,3490.5,6.14229145]
[1721212657959,3.0,3491.3,3490.6,2.86482]
[1721212658180,2.4975,3491.4,3490.6,2.86482]
[1721212658379,5.86411,3491.5,3490.6,2.86482]
[1721212659287,3.0,3491.5,3490.7,2.86473]
[1721212659456,3.0,3491.6,3490.8,3.76528514]
[1721212659809,2.86385,3491.8,3490.8,3.76528514]
[1721212659810,3.0,3491.7,3490.8,3.76528514]
[1721212661284,5.86393,3491.7,3490.8,0.90069514]
[1721212662409,2.86406,3491.6,3490.5,2.4111]
[1721212662557,2.86431,3491.3,3490.3,2.86508]
[1721212663067,3.0,3491.2,3490.3,2.86508]
[1721212663273,3.0,3491.2,3490.4,0.809311]
[1721212664996,3.0,3491.2,3490.4,3.674271]
[1721212666070,5.86435,3491.2,3490.4,0.809311]
[1721212668919,5.86435,3491.2,3490.4,0.639311]
[1721212676317,5.86435,3491.2,3490.7,1.006]
[1721212677821,3.0,3491.2,3490.7,1.006]
[1721212678019,5.86426,3491.3,3490.9,1.006]
[1721212678230,5.86426,3491.3,3491.1,1.006]
[1721212678231,3.0,3491.3,3491.1,1.006]
[1721212678377,5.35709,3491.8,3491.1,1.006]
[1721212678378,2.86399,3491.7,3491.1,1.006]
[1721212678723,2.86346,3492.3,3490.7,1.7]
[1721212678724,2.86373,3492.0,3491.4,1.006]
[1721212679247,2.4932,3492.1,3491.8,1.006]
[1721212679449,8.286,3493.0,3492.0,1.006]
[1721212679450,2.4932,3492.5,3492.0,1.006]
[1721212679586,5.35625,3492.8,3492.3,1.006]
[1721212680438,5.35625,3492.8,3491.9,2.2688]
[1721212681034,5.35625,3492.8,3491.7,2.86391]
[1721212681250,5.35625,3492.8,3491.8,2.86382]
[1721212681452,5.35625,3492.8,3491.7,2.86391]
[1721212681602,5.35625,3492.8,3491.8,0.76813048]
[1721212681942,3.0,3492.7,3491.8,0.76813048]
[1721212682244,3.0,3492.7,3491.9,2.86376]
[1721212684142,3.0,3492.7,3491.9,2.92102893]
[1721212684343,2.4932,3492.8,3491.9,2.92102893]
[1721212684574,2.4932,3492.8,3491.9,2.86376]
[1721212684782,5.35627,3492.8,3491.9,2.86376]
[1721212684990,3.0,3492.7,3491.9,2.86376]
[1721212688262,3.0,3492.7,3491.7,2.86391]
[1721212688492,5.86312,3492.7,3491.7,2.86391]
[1721212688889,5.86312,3492.7,3491.8,2.86384]
[1721212689204,5.86312,3492.7,3491.7,2.86391]
[1721212690277,5.86312,3492.7,3491.8,2.86384]
[1721212691308,5.86312,3492.7,3491.7,2.8639]
[1721212693374,8.72631,3492.7,3491.7,2.8639]
[1721212694096,2.8632,3492.6,3491.7,2.8639]
[1721212695124,2.8635,3492.3,3491.2,5.27534]
[1721212695270,2.86372,3492.0,3490.8,2.411]
[1721212695472,2.4558,3491.9,3490.9,6.86454]
[1721212695704,2.4558,3491.9,3491.0,4.040144]
[1721212698513,2.4558,3491.9,3490.6,1.7]
[1721212698514,2.86402,3491.6,3490.6,2.86483]
[1721212698670,2.3578,3491.5,3490.4,7.75757]
[1721212698869,2.3578,3491.5,3490.5,4.0]
[1721212699075,2.3578,3491.5,3490.5,0.43722665]
[1721212699613,2.3578,3491.5,3490.3,2.86504]
[1721212699977,2.86433,3491.3,3490.3,2.86504]
[1721212701207,2.3578,3491.5,3490.4,2.86499]
[1721212701536,2.86418,3491.4,3490.4,2.86499]
[1721212702408,5.2219,3491.5,3490.6,2.86478]
[1721212703419,2.86431,3491.3,3490.3,2.86505]
[1721212703843,2.86431,3491.3,3490.4,2.86499]
[1721212705431,5.2219,3491.5,3490.4,2.86499]
[1721212705607,2.86418,3491.4,3490.4,2.86499]
[1721212705927,2.86418,3491.4,3490.4,3.438003]
[1721212706342,2.86418,3491.4,3490.7,1.006]
[1721212707133,2.86426,3491.3,3490.5,1.006]
[1721212707355,2.86426,3491.3,3490.3,1.006]
[1721212707356,5.72897,3491.1,3490.3,1.006]
[1721212707501,5.72897,3491.1,3490.1,3.87123]
[1721212707830,2.86447,3491.1,3490.1,3.87123]
[1721212707995,2.86447,3491.1,3490.3,1.006]
[1721212708430,2.86451,3491.0,3490.3,1.006]
[1721212710331,2.86451,3491.0,3490.1,2.86523]
[1721212710643,8.34224,3491.2,3490.2,2.86515]
[1721212711222,8.34224,3491.2,3489.8,7.44]
[1721212711223,5.4779,3491.2,3489.8,7.44]
[1721212711428,2.4779,3491.2,3490.2,2.4554]
[1721212712139,2.4779,3491.2,3490.5,2.86491]
[1721212712341,2.3197,3491.6,3490.5,2.232031]
[1721212712519,2.3197,3491.6,3490.8,2.8646]
[1721212713940,5.3197,3491.6,3490.8,2.8646]
[1721212716044,5.3197,3491.6,3490.5,3.396911]
[1721212716245,5.3197,3491.6,3490.6,0.3396911]
[1721212716419,2.86418,3491.4,3490.5,2.86488]
[1721212716930,2.3666,3491.2,3490.3,2.86506]
[1721212717314,5.23095,3491.2,3490.3,2.86506]
[1721212719418,2.86451,3491.0,3490.1,2.86523]
[1721212719642,2.86451,3491.0,3490.1,3.151753]
[1721212720862,2.86451,3491.0,3490.2,2.86516]
[1721212721154,2.86451,3491.0,3490.1,3.151753]
[1721212722555,2.86418,3491.4,3490.2,2.4541]
[1721212722762,5.86427,3491.3,3490.2,5.73023]
[1721212722949,2.8644,3491.2,3490.3,2.86506]
[1721212724222,2.86424,3491.4,3490.3,5.73006]
[1721212724425,3.0,3491.3,3490.3,8.16656]
[1721212724621,3.0,3491.3,3490.6,2.86478]
[1721212724845,3.0,3491.4,3490.8,2.86462]
[1721212725055,3.0,3491.4,3490.4,3.31947583]
[1721212725056,2.3264,3491.9,3490.7,1.7]
[1721212725273,2.3264,3491.9,3491.1,2.86437]
[1721212725581,2.3264,3491.9,3491.2,2.9216203]
[1721212727478,2.3264,3491.9,3491.3,2.86425]
[1721212727890,2.3264,3491.9,3491.4,2.86417]
[1721212728044,2.4458,3492.3,3491.4,2.86417]
[1721212728648,5.4458,3492.3,3491.4,2.86417]
[1721212728848,5.4458,3492.3,3491.5,2.86403]
[1721212729084,2.4458,3492.3,3491.5,2.86403]
[1721212729284,2.86307,3492.8,3491.4,2.86417]
[1721212729285,2.4288,3492.8,3491.6,0.57282]
[1721212729485,2.4288,3492.8,3491.9,2.8637]
[1721212731551,5.29183,3492.8,3491.9,2.8637]
[1721212731952,3.0,3492.7,3491.9,2.8637]
[1721212732494,5.4288,3492.8,3491.9,2.8637]
[1721212733856,5.4288,3492.8,3492.0,2.86367]
[1721212735564,3.0,3492.7,3492.0,2.86367]
[1721212735767,5.29183,3492.8,3491.9,0.857254]
[1721212735988,5.86312,3492.7,3491.8,2.86382]
[1721212736360,3.0,3492.7,3491.9,2.86375]
[1721212736581,5.4288,3492.8,3491.9,2.86375]
[1721212737180,8.29183,3492.8,3491.9,2.86375]
[1721212737557,8.29183,3492.8,3491.7,2.86387]
[1721212737989,8.29183,3492.8,3491.6,5.7089]
[1721212737990,8.29183,3492.8,3491.8,2.86382]
[1721212738359,2.86311,3492.7,3491.8,2.86382]
[1721212739197,2.86311,3492.7,3491.9,2.86376]
[1721212739776,2.86311,3492.7,3491.7,2.86386]
[1721212740304,2.86311,3492.7,3491.8,2.86384]
[1721212741408,5.31256,3492.4,3491.4,2.8641]
[1721212741897,2.86353,3492.2,3491.1,7.44]
[1721212742095,5.12217,3491.9,3491.1,7.44]
[1721212742298,5.12217,3491.9,3491.0,2.8645]
[1721212743097,5.12217,3491.9,3490.8,2.86461]
[1721212743684,5.12217,3491.9,3490.8,2.86459]
[1721212744001,5.12217,3491.9,3491.0,2.86445]
[1721212744524,5.12217,3491.9,3490.8,5.7292]
[1721212744665,5.12217,3491.9,3490.9,2.86458]
[1721212745773,2.86386,3491.8,3490.9,2.86456]
[1721212749092,2.8641,3491.5,3490.5,2.86488]
[1721212749289,2.8641,3491.5,3490.3,2.86505]
[1721212749290,2.3714,3491.4,3490.3,2.86505]
[1721212749616,2.86432,3491.3,3490.4,2.86499]
[1721212749812,2.86432,3491.3,3490.5,0.531489]
[1721212750399,2.86432,3491.3,3490.6,1.006]
[1721212756842,2.86432,3491.3,3490.4,1.006]
[1721212757143,5.72865,3491.3,3490.4,3.87099]
[1721212757491,2.86432,3491.3,3490.4,3.87099]
[1721212758233,2.86432,3491.3,3490.4,6.73594]
[1721212758437,2.86432,3491.3,3490.4,3.87095]
[1721212759097,5.72866,3491.3,3490.4,3.87095]
[1721212759426,2.86435,3491.2,3490.4,1.006]
[1721212759731,2.3151,3491.1,3490.3,2.86508]
[1721212761418,5.17952,3491.1,3490.3,2.86508]
[1721212761937,5.17952,3491.1,3490.2,3.87116]
[1721212762391,5.17952,3491.1,3490.3,2.86507]
[1721212762752,5.17952,3491.1,3490.4,1.006]
[1721212764924,2.3151,3491.1,3490.4,1.006]
[1721212766058,2.3151,3491.1,3490.4,4.544586]
[1721212766260,2.3151,3491.1,3490.6,3.87078]
[1721212766556,5.4309,3491.4,3490.8,1.006]
[1721212766915,2.4309,3491.4,3491.0,3.87049]
[1721212767116,2.4309,3491.4,3491.0,4.257539]
[1721212770463,2.4309,3491.4,3491.0,1.393049]
[1721212770626,2.4309,3491.4,3491.0,1.006]
[1721212770826,2.4309,3491.4,3490.9,2.86457]
[1721212771261,2.4309,3491.4,3491.0,1.006]
[1721212771489,2.4309,3491.4,3490.8,3.87066]
[1721212771650,2.4309,3491.4,3490.6,2.86479]
[1721212771960,2.4309,3491.4,3490.6,3.87079]
[1721212773054,5.29513,3491.4,3490.6,3.87079]
[1721212773724,5.29513,3491.4,3490.6,1.006]
[1721212774334,2.8644,3491.2,3490.6,1.006]
[1721212774539,5.27433,3491.1,3490.4,1.006]
[1721212778352,2.4099,3491.1,3490.4,1.006]
[1721212778960,2.4099,3491.1,3490.4,3.871]
[1721212779161,2.4099,3491.1,3490.4,4.544602]
[1721212779579,2.4099,3491.1,3490.6,3.87079]
[1721212779772,2.4324,3491.6,3490.9,2.86458]
[1721212780159,2.4324,3491.6,3491.0,1.006]
[1721212780349,2.4324,3491.6,3491.0,1.679524]
[1721212780746,2.4324,3491.6,3491.0,0.673524]
[1721212781150,2.4324,3491.6,3490.9,2.86458]
[1721212782351,2.86423,3491.4,3490.4,2.373602]
[1721212782553,2.86423,3491.4,3490.5,1.006]
[1721212782896,2.86423,3491.4,3490.5,3.87091]